bitfinex/quotes_ETHUSD_20251118
["timestamp","ask_amount","ask_price","bid_price","bid_amount"]
[1763449553914,0.287,2992.3,2992.0,0.001]
[1763449554246,0.04177528,2992.2,2992.0,0.001]
[1763449554535,0.4859,2992.2,2992.0,0.001]
[1763449555135,0.287,2992.1,2992.0,0.001]
[1763449555502,0.4859,2992.1,2992.0,0.001]
[1763449555699,0.7729,2992.1,2992.0,0.001]
[1763449556905,0.4859,2992.1,2992.0,0.001]
[1763449557112,0.7729,2992.1,2992.0,0.001]
[1763449557326,8.66321627,2992.2,2992.0,0.001]
[1763449557507,0.1916,2992.4,2992.0,0.001]
[1763449557824,0.7729,2992.3,2992.0,0.001]
[1763449558225,0.287,2992.3,2992.0,0.001]
[1763449560711,0.1916,2993.1,2992.2,0.405504]
[1763449560907,0.002,2992.4,2992.2,0.405504]
[1763449561152,1.493,2992.3,2992.2,0.405504]
[1763449561361,0.002,2992.4,2992.2,0.870904]
[1763449561511,1.493,2992.3,2992.2,0.870904]
[1763449561710,1.493,2992.3,2992.2,0.405504]
[1763449562130,1.493,2992.3,2992.0,0.001]
[1763449562328,1.493,2992.3,2992.2,0.405504]
[1763449562516,1.493,2992.3,2992.2,0.8361544]
[1763449562723,1.206,2992.3,2992.2,1.4822544]
[1763449562943,1.493,2992.3,2992.2,1.051604]
[1763449563698,0.002,2992.4,2992.2,1.051604]
[1763449563990,0.002,2992.7,2992.4,0.405504]
[1763449564137,1.384,2992.6,2992.4,0.870904]
[1763449564338,1.384,2992.6,2992.5,0.58329366]
[1763449564588,1.384,2992.6,2992.5,1.04869366]
[1763449564885,1.384,2992.6,2992.5,0.58329366]
[1763449565590,1.384,2992.6,2992.5,0.405504]
[1763449566135,0.002,2992.7,2992.6,0.405504]
[1763449566343,1.495,2992.7,2992.6,0.405504]
[1763449566552,0.002,2992.7,2992.6,0.861104]
[1763449566748,0.002,2993.0,2992.7,1.31249664]
[1763449566973,1.3976,2995.0,2992.9,0.405504]
[1763449567174,1.493,2994.9,2994.2,0.405504]
[1763449567691,1.493,2994.9,2994.2,0.861104]
[1763449568045,1.493,2994.9,2994.4,0.405504]
[1763449568369,1.493,2994.9,2994.1,0.1807]
[1763449568370,1.493,2994.9,2994.2,0.405504]
[1763449568543,0.1955,2995.5,2994.2,0.405504]
[1763449568750,2.699,2995.4,2994.4,0.405504]
[1763449568947,0.287,2995.3,2994.4,0.405504]
[1763449569149,1.493,2995.3,2994.5,0.405504]
[1763449569341,1.493,2995.3,2994.1,0.1807]
[1763449569574,0.302,2996.3,2995.3,0.405504]
[1763449569758,0.302,2996.3,2996.1,0.483604]
[1763449569759,1.206,2996.2,2996.1,0.483604]
[1763449569971,1.206,2996.2,2996.1,10.05381291]
[1763449570151,1.493,2996.2,2996.1,10.50941291]
[1763449570352,1.493,2996.2,2996.1,11.5603542]
[1763449570558,0.002,2996.9,2996.2,1.76809664]
[1763449570883,0.002,2996.9,2996.1,9.79225756]
[1763449570884,0.002,2996.9,2996.5,1.31249664]
[1763449571071,1.495,2996.6,2996.5,1.31249664]
[1763449571247,1.495,2996.6,2996.5,1.76809664]
[1763449571645,1.495,2996.6,2996.5,1.31249664]
[1763449571886,0.002,2996.6,2996.5,1.31249664]
[1763449572057,1.495,2996.6,2996.5,1.76809664]
[1763449572259,1.495,2996.6,2996.5,2.28805813]
[1763449572581,1.495,2996.6,2996.5,1.31249664]
[1763449573146,1.495,2996.6,2996.5,0.405504]
[1763449574270,0.002,2996.6,2996.5,0.405504]
[1763449574473,1.495,2996.6,2996.5,0.861104]
[1763449574785,1.495,2996.6,2996.5,0.405504]
[1763449575547,1.9793,2996.6,2995.0,8.64091828]
[1763449575851,0.4843,2996.5,2995.2,0.88387183]
[1763449576075,0.4843,2996.5,2995.0,0.1978]
[1763449576076,1.492,2996.4,2995.1,0.405504]
[1763449576280,2.697,2996.4,2995.0,0.6534]
[1763449576584,3.1813,2996.4,2995.0,0.6534]
[1763449576784,0.4843,2996.3,2995.0,0.1978]
[1763449577149,0.4843,2996.3,2995.1,0.405504]
[1763449577460,0.4843,2996.3,2995.0,0.1978]
[1763449577897,1.39129264,2996.3,2994.5,0.4556]
[1763449578120,1.39129264,2996.3,2994.1,8.16821828]
[1763449578121,0.52601951,2996.2,2994.1,8.16821828]
[1763449578404,0.4843,2996.2,2994.2,1.36259264]
[1763449578560,0.0417209,2996.1,2994.3,0.95308109]
[1763449578760,0.0417209,2996.1,2994.1,0.1807]
[1763449578761,0.90699264,2995.9,2994.1,0.1807]
[1763449579005,0.287,2995.8,2994.1,0.1807]
[1763449579213,0.453,2995.7,2994.2,0.4697]
[1763449579375,2.697,2995.7,2994.3,0.405504]
[1763449579574,2.697,2995.7,2994.5,0.405504]
[1763449579903,2.697,2995.7,2994.7,0.405504]
[1763449580108,2.697,2995.7,2994.9,0.405504]
[1763449580461,2.697,2995.7,2995.0,0.405504]
[1763449580901,2.697,2995.7,2995.2,0.405504]
[1763449581196,1.492,2995.6,2995.2,0.405504]
[1763449581554,1.492,2995.6,2995.2,0.875204]
[1763449582503,1.492,2995.6,2995.2,0.405504]
[1763449582709,1.492,2995.6,2995.4,0.405504]
[1763449583497,1.492,2995.6,2995.4,0.4697]
[1763449583698,1.492,2995.6,2995.2,0.405504]
[1763449583894,1.492,2995.6,2995.2,0.875204]
[1763449584096,1.492,2995.6,2995.2,0.405504]
[1763449584805,0.453,2996.5,2995.4,0.405504]
[1763449585010,7.98951828,2997.2,2995.6,0.405504]
[1763449585011,1.205,2996.4,2995.6,0.405504]
[1763449585217,1.492,2996.4,2995.6,0.405504]
[1763449585598,1.945,2996.4,2995.5,0.405504]
[1763449585773,1.945,2996.4,2995.3,0.405504]
[1763449586298,1.205,2996.3,2995.3,0.405504]
[1763449586498,1.205,2996.3,2995.2,0.405504]
[1763449587295,0.287,2996.2,2995.2,0.405504]
[1763449588994,0.287,2996.2,2995.3,8.45721828]
[1763449589196,0.287,2996.2,2995.4,2.19876887]
[1763449589382,0.287,2996.2,2995.4,2.66846887]
[1763449589582,0.287,2996.2,2995.4,1.76147623]
[1763449589783,0.287,2996.2,2996.1,0.455204]
[1763449590173,0.287,2996.2,2996.1,0.405504]
[1763449590576,0.287,2996.2,2996.1,0.575704]
[1763449590889,0.74,2996.2,2996.1,0.405504]
[1763449591076,0.74,2996.2,2995.4,0.4697]
[1763449591077,0.287,2996.2,2995.4,0.4697]
[1763449591274,0.002,2996.6,2996.1,0.1702]
[1763449591497,0.002,2996.6,2995.7,8.63078761]
[1763449591498,1.945,2996.5,2995.7,0.405504]
[1763449591672,1.492,2996.5,2995.7,0.405504]
[1763449592208,1.492,2996.5,2995.5,0.405504]
[1763449592410,1.492,2996.4,2995.8,1.31249664]
[1763449592712,1.205,2996.3,2996.0,0.405504]
[1763449593030,1.492,2996.2,2996.0,0.405504]
[1763449593218,1.492,2996.2,2996.1,0.575704]
[1763449593507,1.492,2996.2,2996.1,1.23195764]
[1763449593911,0.002,2996.6,2996.2,0.405504]
[1763449594217,1.492,2996.5,2996.2,0.405504]
[1763449594990,1.492,2996.5,2996.1,0.36775364]
[1763449595205,0.002,2996.6,2996.1,0.1702]
[1763449595431,1.492,2996.5,2996.2,0.875204]
[1763449595582,0.4783,2996.3,2996.1,0.90699264]
[1763449595788,0.2879,2996.2,2995.4,0.90699264]
[1763449596111,1.492,2996.5,2995.6,0.405504]
[1763449596112,0.287,2996.1,2995.6,0.405504]
[1763449596317,1.492,2996.0,2995.8,0.405504]
[1763449596485,0.002,2996.6,2996.0,0.405504]
[1763449596687,1.492,2996.5,2996.0,0.405504]
[1763449597135,1.9818,2996.5,2996.0,0.405504]
[1763449597449,0.002,2996.3,2996.0,0.405504]
[1763449597746,0.002,2996.3,2996.2,0.405504]
[1763449597904,1.494,2996.3,2996.2,0.405504]
[1763449598111,0.002,2996.3,2996.2,0.405504]
[1763449598458,0.002,2996.3,2996.2,0.892704]
[1763449598459,1.207,2996.3,2996.2,0.892704]
[1763449598604,1.207,2996.3,2996.2,1.23917483]
[1763449598605,1.494,2996.3,2996.2,1.23917483]
[1763449599117,0.002,2996.3,2996.2,2.62066747]
[1763449599439,1.494,2996.3,2996.2,1.65896747]
[1763449599600,1.494,2996.3,2996.2,0.75197483]
[1763449599806,1.494,2996.3,2996.2,0.405504]
[1763449600417,1.494,2996.3,2996.1,0.405504]
[1763449600807,1.494,2996.3,2996.0,0.405504]
[1763449602725,0.002,2996.3,2996.2,1.063304]
[1763449603008,1.494,2996.3,2996.2,1.97029664]
[1763449603249,1.205,2996.3,2996.2,3.55235506]
[1763449603656,1.205,2996.3,2996.2,2.17086242]
[1763449603853,1.205,2996.3,2996.2,1.31249664]
[1763449604035,1.205,2996.3,2996.2,1.79969664]
[1763449604375,1.492,2996.3,2996.2,1.79969664]
[1763449604581,1.492,2996.3,2996.2,1.31249664]
[1763449604742,1.492,2996.3,2996.2,1.7004779]
[1763449605477,1.492,2996.3,2996.2,2.1876779]
[1763449605772,1.492,2996.3,2996.2,5.05889385]
[1763449606073,0.002,2996.6,2996.3,0.405504]
[1763449606272,1.492,2996.5,2996.3,4.18303141]
[1763449606473,1.492,2996.5,2996.4,1.76959791]
[1763449606671,1.492,2996.5,2996.4,5.12733268]
[1763449606971,0.002,2996.6,2996.5,0.405504]
[1763449607137,0.002,2996.9,2996.7,0.405504]
[1763449607342,0.002,2996.9,2996.8,0.892704]
[1763449607565,1.494,2996.9,2996.8,1.07267366]
[1763449607769,0.002,2996.9,2996.8,1.54717366]
[1763449607972,1.494,2996.9,2996.8,0.58547366]
[1763449608461,0.002,2996.9,2996.8,0.17996966]
[1763449608772,1.494,2996.9,2996.8,1.07267366]
[1763449609072,1.494,2996.9,2996.8,0.58547366]
[1763449609441,1.494,2996.9,2996.8,1.07267366]
[1763449610194,0.002,2997.2,2996.8,2.4541663]
[1763449610483,0.002,2997.2,2996.8,1.4924663]
[1763449610484,1.205,2996.9,2996.8,1.4924663]
[1763449610641,0.002,2997.2,2996.9,0.405504]
[1763449610842,0.002,2997.2,2997.1,1.79969664]
[1763449611180,0.916,2998.1,2997.1,4.84649664]
[1763449611378,0.916,2998.1,2998.0,0.892704]
[1763449611561,0.916,2998.1,2998.0,1.79969664]
[1763449611762,0.916,2998.1,2998.0,2.27419664]
[1763449612074,1.203,2998.1,2998.0,2.27419664]
[1763449612278,0.002,2998.4,2998.0,2.27419664]
[1763449612279,0.002,2998.4,2998.1,0.405504]
[1763449612462,0.002,2998.4,2998.3,0.405504]
[1763449612650,0.289,2998.4,2998.3,0.405504]
[1763449613741,1.2779,2998.4,2998.1,0.90699264]
[1763449614061,1.2779,2998.4,2997.6,1.04579264]
[1763449614261,1.2779,2998.4,2997.7,0.34366837]
[1763449614262,0.7881,2998.4,2997.7,0.34366837]
[1763449614560,0.4898,2998.3,2997.7,0.34366837]
[1763449614761,0.4898,2998.3,2997.8,0.405504]
[1763449614982,0.002,2998.4,2997.4,0.4745]
[1763449615150,0.287,2998.2,2997.4,0.4745]
[1763449615345,0.002,2998.4,2997.5,1.31249664]
[1763449615550,0.002,2998.4,2997.5,2.31372467]
[1763449615805,0.287,2998.3,2998.0,0.001]
[1763449616101,0.002,2998.1,2998.0,0.001]
[1763449616946,0.289,2998.1,2998.0,0.001]
[1763449617352,0.002,2998.7,2998.3,0.4872]
[1763449617549,0.002,2998.7,2998.6,10.43705819]
[1763449617788,9.12456155,3001.3,2998.7,1.31249664]
[1763449618001,0.4898,3000.6,2998.9,1.31249664]
[1763449618293,0.4898,3000.6,2999.0,0.405504]
[1763449618446,0.4898,3000.6,2999.3,1.31249664]
[1763449618650,0.1902,3000.5,2999.7,1.31249664]
[1763449618859,0.4898,3001.0,2999.9,0.405504]
[1763449619078,0.1902,3000.6,2999.9,0.405504]
[1763449619484,0.4898,3000.5,2999.6,0.405504]
[1763449619787,0.1902,2999.9,2999.2,0.405504]
[1763449619956,0.287,2999.8,2999.2,0.405504]
[1763449620151,0.287,2999.7,2999.2,0.405504]
[1763449620405,0.68,3000.6,2999.2,0.405504]
[1763449620554,0.7758,3000.5,2999.2,0.405504]
[1763449620890,0.7758,3000.5,2999.4,0.405504]
[1763449621089,0.4898,3000.4,2999.1,0.405504]
[1763449621302,1.6938,3000.4,2999.1,0.405504]
[1763449621650,0.4898,3000.3,2999.1,0.405504]
[1763449622087,0.1902,3000.6,2999.6,0.405504]
[1763449622299,1.49,3000.5,2999.8,0.405504]
[1763449622475,1.9798,3000.5,2999.8,0.405504]
[1763449622784,1.9798,3000.5,2999.5,0.405504]
[1763449623474,0.4898,3000.4,2999.3,0.405504]
[1763449624190,1.49,3000.3,2999.3,0.880004]
[1763449624389,0.1902,3001.2,2998.9,2.38402627]
[1763449624390,0.1902,3001.4,3000.4,0.405504]
[1763449624561,1.49,3001.3,3000.4,0.405504]
[1763449624762,0.1902,3000.5,3000.4,0.405504]
[1763449624965,0.4762,3000.5,2999.7,0.405504]
[1763449625165,0.4762,3000.5,2999.4,2.56272593]
[1763449625166,0.1902,2999.7,2999.4,0.17869966]
[1763449625490,0.4898,3000.4,2999.1,0.1547]
[1763449625491,0.286,2999.6,2999.1,0.1547]
[1763449625668,0.286,2999.6,2998.8,0.90699264]
[1763449625669,0.7758,2999.6,2998.8,0.90699264]
[1763449625868,0.7758,2999.6,2998.6,4.08356063]
[1763449625869,0.7758,2999.6,2998.9,1.01304542]
[1763449626066,0.1902,3000.5,2998.7,9.12456155]
[1763449626265,0.19,2999.9,2998.8,0.90699264]
[1763449626466,0.19,2999.9,2998.6,1.37809264]
[1763449626668,1.204,2999.8,2999.0,1.31249664]
[1763449626882,0.287,2999.7,2999.2,0.405504]
[1763449627103,0.477,2999.7,2998.8,0.405504]
[1763449627493,0.477,2999.7,2998.7,0.405504]
[1763449627691,0.6588,3000.5,2999.0,1.31249664]
[1763449628009,0.1902,3001.4,2999.0,1.31249664]
[1763449628318,1.9596,3001.3,3000.2,1.31249664]
[1763449628678,0.1902,3001.4,3000.6,1.31249664]
[1763449628879,1.491,3001.3,3000.8,0.405504]
[1763449629416,0.4686,3001.7,3000.5,9.59566155]
[1763449629619,1.49,3001.6,3000.7,0.405504]
[1763449630178,0.4686,3001.6,3000.7,0.405504]
[1763449630378,1.49,3001.5,3000.7,0.405504]
[1763449630615,1.49,3001.5,3000.2,0.405504]
[1763449630782,0.4686,3001.4,3000.4,0.405504]
[1763449631311,1.49,3001.3,3000.4,0.405504]
[1763449631514,1.6716,3001.9,3000.4,9.53006555]
[1763449631699,1.203,3001.2,3000.6,0.405504]
[1763449631907,0.1902,3002.0,3000.9,0.405504]
[1763449631908,1.203,3001.1,3000.9,0.405504]
[1763449632219,0.4686,3002.4,3001.1,0.405504]
[1763449632404,1.49,3002.3,3001.1,0.405504]
[1763449632614,1.203,3002.2,3001.7,1.31249664]
[1763449632781,0.287,3002.1,3001.7,1.31249664]
[1763449632986,0.4686,3003.3,3002.1,0.405504]
[1763449633314,0.4686,3003.3,3002.1,1.31249664]
[1763449633503,1.49,3002.9,3002.3,0.405504]
[1763449633811,0.4686,3003.3,3002.3,0.405504]
[1763449633812,1.49,3002.8,3002.3,0.405504]
[1763449634377,0.4686,3002.7,3002.3,0.405504]
[1763449634581,0.4686,3002.7,3001.8,0.405504]
[1763449634781,1.49,3002.8,3001.8,0.405504]
[1763449634981,0.4686,3003.3,3002.0,0.405504]
[1763449635281,1.49,3003.2,3002.2,0.405504]
[1763449636432,0.2711,3003.4,3002.2,0.405504]
[1763449636433,1.203,3003.1,3002.7,1.31249664]
[1763449636618,1.203,3003.1,3002.9,0.405504]
[1763449636821,0.287,3003.0,3002.9,0.405504]
[1763449637189,0.287,3003.0,3002.4,1.31249664]
[1763449637389,0.287,3003.0,3002.8,1.31249664]
[1763449637823,1.49,3002.9,3002.8,1.31249664]
[1763449638127,0.2711,3003.4,3003.3,0.556204]
[1763449638422,1.4741,3003.4,3003.3,0.556204]
[1763449638623,1.4741,3003.4,3003.3,0.405504]
[1763449638822,1.4741,3003.4,3002.4,0.90699264]
[1763449639125,0.481,3003.3,3002.0,0.1507]
[1763449639324,0.287,3003.2,3001.7,0.0989]
[1763449639500,1.49,3003.1,3001.7,0.0989]
[1763449639708,0.90699264,3003.0,3001.7,0.92234616]
[1763449640032,0.1946,3001.8,3001.2,0.19763106]
[1763449640330,0.1946,3001.8,3001.0,0.1467]
[1763449640331,0.287,3001.7,3001.0,0.1467]
[1763449640690,0.768,3001.7,3000.4,9.58486155]
[1763449641023,0.768,3001.7,3000.4,0.4603]
[1763449641210,0.481,3001.7,3000.5,0.405504]
[1763449641411,1.49,3001.6,3000.7,0.405504]
[1763449641612,1.49,3001.6,3000.4,0.4603]
[1763449641817,0.481,3001.5,2999.8,0.5592]
[1763449642327,0.481,3001.5,2999.5,9.64386902]
[1763449642530,2.693,3001.4,2999.5,9.64386902]
[1763449642701,0.481,3001.5,2999.5,9.64386902]
[1763449642906,3.174,3001.4,2999.6,1.36729264]
[1763449643132,3.174,3001.4,2999.6,0.4603]
[1763449643428,1.42964125,3001.3,2999.7,1.0104169]
[1763449643725,1.42964125,3001.3,2999.3,0.0989]
[1763449643896,0.481,3001.2,2999.3,0.0989]
[1763449644628,0.1946,3001.0,2999.0,0.001]
[1763449644830,0.52265417,3000.9,2999.0,0.001]
[1763449645130,0.287,3000.8,2999.0,0.001]
[1763449645423,0.90699264,3000.8,2999.0,0.001]
[1763449645628,0.481,3000.7,2999.1,0.0989]
[1763449645830,0.288,3000.6,2999.3,0.405504]
[1763449646328,0.1946,3001.0,2999.8,9.64386902]
[1763449646625,1.491,3000.9,2999.9,2.27688354]
[1763449647016,0.481,3000.8,2999.9,1.3698909]
[1763449647218,0.481,3000.8,2999.2,0.405504]
[1763449647946,1.491,3000.7,2999.1,0.0989]
[1763449648102,1.491,3000.6,2999.1,1.46619264]
[1763449648297,1.491,3000.6,2999.2,0.405504]
[1763449648620,1.491,3000.6,2999.2,0.865804]
[1763449648805,0.1946,3001.0,2999.2,0.865804]
[1763449648806,0.481,3000.5,2999.3,0.18716966]
[1763449649008,1.972,3000.5,2999.3,0.18716966]
[1763449649238,1.972,3000.5,2999.0,0.001]
[1763449649448,0.481,3000.4,2999.0,0.001]
[1763449649654,1.491,3000.3,2999.1,0.0989]
[1763449649857,0.481,3000.3,2999.2,0.405504]
[1763449650060,1.491,3000.2,2999.2,0.405504]
[1763449650437,0.481,3000.8,2999.4,1.31249664]
[1763449650637,1.203,3000.7,2999.6,0.405504]
[1763449650851,1.491,3000.7,2999.6,0.405504]
[1763449651059,0.1946,3001.0,2999.8,1.31249664]
[1763449651379,0.483,3001.5,3000.2,1.31249664]
[1763449651526,1.203,3000.9,3000.4,0.405504]
[1763449651734,0.288,3000.8,3000.6,1.31249664]
[1763449652166,0.002,3001.5,3000.8,0.405504]
[1763449652338,1.491,3001.4,3000.8,0.405504]
[1763449652540,0.002,3001.5,3000.4,0.865804]
[1763449652740,1.203,3001.4,3001.0,1.31249664]
[1763449652946,0.288,3001.3,3001.2,0.405504]
[1763449653133,0.288,3001.3,3000.6,0.405504]
[1763449654228,0.288,3001.3,3000.5,0.21121406]
[1763449654229,0.1946,3000.7,3000.5,0.21121406]
[1763449654437,0.288,3000.6,3000.5,0.21121406]
[1763449654636,0.288,3000.6,3000.5,0.405504]
[1763449655071,0.002,3001.5,3000.5,0.405504]
[1763449655072,0.002,3001.5,3000.6,0.405504]
[1763449655234,1.491,3001.4,3000.6,0.405504]
[1763449655433,1.491,3001.4,3000.5,0.865804]
[1763449655661,1.491,3001.4,3000.6,0.17727966]
[1763449656167,0.002,3001.5,3000.6,0.17727966]
[1763449656339,0.002,3001.5,3000.6,0.65437966]
[1763449656543,0.002,3001.5,3000.9,0.405504]
[1763449656544,1.491,3001.4,3000.9,0.405504]
[1763449657104,1.203,3001.3,3001.2,1.31249664]
[1763449657395,1.491,3001.3,3001.2,1.31249664]
[1763449657692,1.491,3001.3,3001.2,0.405504]
[1763449658414,2.01441232,3001.3,3001.2,0.405504]
[1763449658857,0.52341232,3001.3,3001.2,0.405504]
[1763449659058,0.52341232,3001.3,3000.6,0.17727966]
[1763449659059,2.46511232,3001.3,3000.6,0.17727966]
[1763449659273,2.46511232,3001.3,3000.7,0.405504]
[1763449659605,1.491,3001.3,3000.3,2.38402627]
[1763449659898,1.491,3001.3,3000.4,0.73460589]
[1763449660198,0.4507,3001.2,3000.4,0.32910189]
[1763449660359,0.4507,3001.2,3000.1,9.64386902]
[1763449660698,0.4507,3001.2,3000.3,0.405504]
[1763449660989,0.4507,3001.2,3000.0,1.05769264]
[1763449661202,0.4507,3001.2,3000.1,0.34417189]
[1763449661566,0.4507,3001.2,3000.2,0.405504]
[1763449661884,1.491,3001.1,3000.2,0.405504]
[1763449662207,1.49,3001.0,3000.5,0.405504]
[1763449662359,0.4676,3000.9,3000.7,0.405504]
[1763449662909,0.81051514,3000.9,3000.3,0.405504]
[1763449663065,0.99111514,3000.9,3000.3,0.405504]
[1763449663287,1.44181514,3000.9,3000.3,0.405504]
[1763449663568,0.4507,3000.8,3000.1,0.34417189]
[1763449663892,0.4507,3000.8,2999.2,2.38402627]
[1763449664093,0.4507,3000.8,2999.4,0.405504]
[1763449664294,0.99111514,3000.9,2999.4,0.405504]
[1763449664295,0.52351514,3000.9,3000.2,0.90699264]
[1763449664496,1.203,3000.7,3000.4,0.405504]
[1763449664796,1.203,3000.7,3000.6,0.405504]
[1763449664966,1.203,3000.7,3000.4,0.405504]
[1763449665373,1.203,3000.7,3000.4,1.78959664]
[1763449665781,0.4527,3001.5,3000.4,1.31249664]
[1763449665978,1.203,3000.6,3000.5,0.88066491]
[1763449666183,1.491,3000.6,3000.5,0.88066491]
[1763449666589,0.4527,3001.5,3000.6,0.405504]
[1763449666794,1.49,3001.4,3000.6,0.405504]
[1763449667000,1.49,3001.4,3000.2,2.38402627]
[1763449667001,0.1806,3000.7,3000.1,2.38402627]
[1763449667305,0.4507,3001.3,3000.3,2.38402627]
[1763449667465,1.203,3000.6,3000.3,2.38402627]
[1763449667666,0.288,3000.5,3000.3,1.31249664]
[1763449667891,0.288,3000.5,3000.4,0.77515629]
[1763449668093,0.4507,3001.4,3000.5,1.31249664]
[1763449668318,1.49,3001.3,3000.8,0.405504]
[1763449668495,1.49,3001.3,3001.0,0.405504]
[1763449668699,1.72651559,3001.2,3001.0,0.405504]
[1763449668899,1.49,3001.2,3001.0,1.31249664]
[1763449669100,0.002,3001.3,3001.2,0.405504]
[1763449669269,1.492,3001.3,3001.2,1.31249664]
[1763449670402,1.492,3001.3,3001.2,3.69652291]
[1763449670565,1.492,3001.3,3001.2,1.31249664]
[1763449670998,0.002,3001.3,3001.2,3.69652291]
[1763449671312,1.492,3001.3,3001.2,4.10592996]
[1763449671676,2.01546453,3001.3,3001.2,4.10592996]
[1763449671874,2.46616453,3001.3,3001.2,0.81491105]
[1763449672089,2.46616453,3001.3,3001.0,2.38402627]
[1763449672292,0.4507,3001.2,3000.9,2.38402627]
[1763449672687,0.4507,3001.2,3000.8,2.38402627]
[1763449672927,0.4507,3001.2,3000.7,2.38402627]
[1763449673439,0.4507,3001.2,3000.5,2.38402627]
[1763449673616,0.1806,3000.8,3000.6,0.405504]
[1763449673815,0.4507,3001.2,3000.6,2.78953027]
[1763449673990,0.52546453,3001.3,3001.0,0.405504]
[1763449674190,0.7377,3001.2,3001.1,0.27895303]
[1763449674946,0.7377,3001.2,3000.2,2.99187569]
[1763449674947,0.1584,3000.8,3000.2,2.99187569]
[1763449675095,0.287,3000.7,2999.1,3.17807569]
[1763449675487,0.287,3000.7,2999.1,2.99187569]
[1763449675715,0.287,3000.7,2998.7,4.17708895]
[1763449675716,0.20595833,3000.6,2999.2,0.29928757]
[1763449675931,0.1643,3000.5,2999.2,0.29928757]
[1763449676131,0.1643,3000.5,2999.0,0.001]
[1763449676430,0.287,3000.4,2999.0,0.001]
[1763449676796,0.1643,3000.3,2999.0,0.001]
[1763449676996,0.287,3000.2,2999.0,0.001]
[1763449677419,0.1643,3000.1,2999.0,0.001]
[1763449677810,0.287,3000.0,2999.0,0.001]
[1763449678129,0.52381893,2999.9,2999.0,0.001]
[1763449678334,0.287,2999.8,2999.0,0.001]
[1763449678908,0.1643,2999.7,2999.0,0.001]
[1763449679914,0.20597083,2999.7,2999.0,0.001]
[1763449680332,0.1643,2999.6,2999.0,0.001]
[1763449680563,0.04167361,2999.5,2999.0,0.001]
[1763449680715,0.1643,2999.6,2999.0,0.001]
[1763449680916,0.4513,2999.5,2999.0,0.001]
[1763449681153,2.5703,2999.4,2999.0,0.001]
[1763449681334,0.205975,2999.4,2999.0,0.001]
[1763449681656,8.14062342,2999.3,2999.0,0.001]
[1763449681852,0.20597778,2999.2,2999.0,0.001]
[1763449682056,0.1643,2999.1,2999.0,0.001]
[1763449682222,0.287,2999.1,2999.0,0.001]
[1763449682417,0.4513,2999.1,2999.0,0.001]
[1763449682834,0.1643,2999.1,2999.0,0.001]
[1763449683056,0.4513,2999.1,2999.0,0.001]
[1763449683556,9.78179923,2999.1,2999.0,0.001]
[1763449683760,9.45312006,2999.1,2999.0,0.001]
[1763449684066,0.90699264,2999.0,2998.7,0.001]
[1763449684246,0.44718595,2998.9,2996.0,3.17807569]
[1763449684427,0.44718595,2998.9,2996.0,0.1862]
[1763449684428,0.90699264,2997.8,2996.0,0.1862]
[1763449684630,0.60548595,2998.9,2996.1,0.4771]
[1763449684631,0.4453,2997.7,2996.1,0.4771]
[1763449684941,0.04170002,2997.6,2996.1,0.4771]
[1763449685125,7.97632342,2997.5,2995.7,0.4771]
[1763449685328,0.1583,2997.6,2995.7,8.45342342]
[1763449685533,0.288,2997.5,2995.8,0.84534234]
[1763449685851,0.288,2997.5,2995.8,1.32244234]
[1763449686059,0.1583,2995.9,2995.2,2.38153323]
[1763449686251,0.1583,2995.9,2995.1,0.001]
[1763449686252,0.288,2995.8,2995.1,0.001]
[1763449686552,0.288,2995.7,2995.1,0.4878]
[1763449687258,7.97632342,2997.5,2995.1,0.4878]
[1763449687259,0.288,2995.6,2995.1,1.39479264]
[1763449687557,0.288,2995.6,2995.2,1.44253161]
[1763449687919,0.288,2995.6,2995.2,0.95573161]
[1763449688252,0.288,2995.6,2995.1,0.001]
[1763449688454,0.288,2995.5,2995.2,1.39379264]
[1763449688762,0.288,2995.5,2995.3,0.892304]
[1763449689263,0.288,2995.5,2995.1,7.97732342]
[1763449689264,0.1583,2996.7,2995.4,0.4868]
[1763449689555,0.288,2996.6,2995.1,0.893304]
[1763449689731,0.288,2996.6,2995.1,0.4878]
[1763449690056,0.20001533,2996.5,2995.1,0.001]
[1763449690356,0.20001533,2996.5,2995.1,0.1853]
[1763449690357,0.1583,2996.5,2995.1,0.1853]
[1763449690555,0.288,2996.4,2995.3,0.405504]
[1763449691060,0.288,2996.3,2995.4,0.405504]
[1763449691242,1.492,2996.2,2995.4,0.405504]
[1763449691440,0.52436755,2996.1,2995.4,0.405504]
[1763449691774,1.492,2996.0,2995.4,0.892304]
[1763449691930,1.492,2996.0,2995.6,0.405504]
[1763449692640,1.492,2996.0,2995.2,0.405504]
[1763449692840,1.204,2995.9,2995.4,1.31249664]
[1763449693027,0.288,2995.8,2995.4,1.31249664]
[1763449693222,0.288,2995.8,2995.6,0.405504]
[1763449693675,0.288,2995.8,2995.7,0.892304]
[1763449693880,0.52436755,2996.1,2995.8,0.405504]
[1763449694166,1.492,2996.0,2995.8,0.892304]
[1763449694462,0.1583,2997.1,2995.8,1.79929664]
[1763449694463,1.204,2995.9,2995.8,1.79929664]